bitfinex-derivatives/quotes_BTCF0:USTF0_20260107
["timestamp","ask_amount","ask_price","bid_price","bid_amount"]
[1767754225484,0.010761,92972.0,92957.0,0.01676176]
[1767754225679,0.01685383,92976.0,92957.0,0.01676176]
[1767754226874,0.09152,92979.0,92960.0,0.01676176]
[1767754226875,0.01685383,92979.0,92960.0,0.01676176]
[1767754227076,0.102281,92975.0,92962.0,0.010762]
[1767754227274,0.102281,92975.0,92960.0,0.01676176]
[1767754228675,0.010761,92973.0,92960.0,0.01676176]
[1767754228876,0.09152,92975.0,92960.0,0.010763]
[1767754229077,0.09152,92975.0,92957.0,0.01676176]
[1767754229078,0.010761,92974.0,92959.0,0.01676176]
[1767754229985,0.0999486,92980.0,92959.0,0.01676176]
[1767754230171,0.0999486,92980.0,92960.0,0.01676176]
[1767754230972,0.010761,92979.0,92962.0,0.010762]
[1767754231586,0.09152,92982.0,92967.0,0.010762]
[1767754231785,0.09152,92982.0,92969.0,0.010762]
[1767754232180,0.09152,92982.0,92966.0,0.010762]
[1767754232683,0.09152,92982.0,92968.0,0.010762]
[1767754233489,0.01602374,92979.0,92965.0,0.010762]
[1767754233673,0.09738808,92980.0,92965.0,0.010762]
[1767754234584,0.11341182,92975.0,92960.0,0.010763]
[1767754234892,0.01602374,92980.0,92960.0,0.02541763]
[1767754235188,0.09152,92979.0,92960.0,0.02541763]
[1767754235489,0.09152,92979.0,92960.0,0.08383123]
[1767754236280,0.010761,92977.0,92960.0,0.08383123]
[1767754236985,0.010761,92975.0,92960.0,0.08383123]
[1767754238187,0.010761,92978.0,92961.0,0.01465463]
[1767754238587,0.09152,92979.0,92961.0,0.01465463]
[1767754240293,0.010761,92975.0,92961.0,0.01465463]
[1767754240484,0.010761,92973.0,92961.0,0.01465463]
[1767754240684,0.010761,92971.0,92960.0,0.0584136]
[1767754240883,0.010761,92971.0,92957.0,0.10925239]
[1767754240884,0.010761,92971.0,92958.0,0.01465463]
[1767754241982,0.010761,92971.0,92959.0,0.01465463]
[1767754242181,0.010761,92971.0,92958.0,0.09848939]
[1767754242385,0.010761,92971.0,92957.0,0.05827281]
[1767754242594,0.010761,92971.0,92955.0,0.01465463]
[1767754242890,0.010761,92971.0,92956.0,0.02541763]
[1767754243093,0.010761,92971.0,92957.0,0.01465463]
[1767754244187,0.010762,92970.0,92957.0,0.01465463]
[1767754245092,0.010762,92970.0,92958.0,0.01465463]
[1767754245284,0.010762,92970.0,92956.0,0.010763]
[1767754245999,0.09738808,92975.0,92954.0,0.01465463]
[1767754246299,0.01602374,92974.0,92954.0,0.01465463]
[1767754247194,0.010762,92968.0,92954.0,0.01465463]
[1767754248398,0.010762,92968.0,92953.0,0.07076137]
[1767754248399,0.010762,92968.0,92955.0,0.02541763]
[1767754249293,0.010762,92971.0,92955.0,0.02541763]
[1767754249799,0.010762,92971.0,92957.0,0.010763]
[1767754250290,0.010762,92969.0,92955.0,0.01465463]
[1767754250695,0.010762,92969.0,92954.0,0.010763]
[1767754250896,0.010762,92969.0,92954.0,0.02541763]
[1767754252100,0.010762,92967.0,92954.0,0.010763]
[1767754253101,0.010762,92970.0,92951.0,0.01465463]
[1767754253402,0.010762,92970.0,92952.0,0.01465463]
[1767754254103,0.010762,92969.0,92955.0,0.010763]
[1767754254908,0.11341182,92978.0,92960.0,0.010763]
[1767754255205,0.09738808,92978.0,92960.0,0.02541763]
[1767754256207,0.010761,92975.0,92960.0,0.02541763]
[1767754256909,0.10814908,92978.0,92962.0,0.010762]
[1767754258206,0.010761,92977.0,92960.0,0.01465463]
[1767754258510,0.010761,92972.0,92956.0,0.010763]
[1767754258711,0.12417282,92975.0,92958.0,0.010763]
[1767754259010,0.12417282,92975.0,92955.0,0.11289535]
[1767754259209,0.12417282,92975.0,92956.0,0.01440596]
[1767754259909,0.010761,92974.0,92960.0,0.010763]
[1767754260312,0.09738808,92975.0,92960.0,0.010763]
[1767754261214,0.01379003,92978.0,92962.0,0.010762]
[1767754261805,0.010761,92976.0,92962.0,0.010762]
[1767754264017,0.09305768,92978.0,92962.0,0.010762]
[1767754264318,0.09305768,92984.0,92963.0,0.11469556]
[1767754264519,0.09152,92983.0,92971.0,0.010761]
[1767754264724,0.09152,92982.0,92973.0,0.010761]
[1767754264915,0.01076,92987.0,92972.0,0.010761]
[1767754264916,0.09152,92987.0,92972.0,0.010761]
[1767754265111,0.09152,92987.0,92974.0,0.010761]
[1767754267126,0.09152,92987.0,92971.0,0.01480195]
[1767754267320,0.09152,92987.0,92976.0,0.010761]
[1767754268230,0.09305768,92994.0,92977.0,0.1057801]
[1767754268523,0.09305768,92994.0,92980.0,0.09097815]
[1767754269128,0.1066038,92994.0,92980.0,0.09097815]
[1767754271232,0.1066038,92994.0,92981.0,0.01076]
[1767754271933,0.1066038,92996.0,92981.0,0.01076]
[1767754272228,0.09152,92995.0,92985.0,0.01076]
[1767754273233,0.010758,93002.0,92985.0,0.01076]
[1767754273537,0.09148,93001.0,92987.0,0.01076]
[1767754273736,0.09148,93000.0,92987.0,0.01076]
[1767754274433,0.10502612,93000.0,92987.0,0.01076]
[1767754275335,0.10502612,93000.0,92984.0,0.01076]
[1767754276030,0.10502612,93000.0,92986.0,0.01076]
[1767754277738,0.01354612,93001.0,92983.0,0.01076]
[1767754277931,0.010758,93000.0,92985.0,0.01076]
[1767754278230,0.02430412,93000.0,92985.0,0.01076]
[1767754279040,0.09305768,93002.0,92985.0,0.01076]
[1767754279344,0.1066038,93002.0,92985.0,0.01076]
[1767754279542,0.01354612,93001.0,92985.0,0.01076]
[1767754280039,0.010758,93003.0,92990.0,0.09097815]
[1767754285445,0.010758,93001.0,92990.0,0.09097815]
[1767754289244,0.010758,93003.0,92992.0,0.01480195]
[1767754289444,0.010758,93003.0,92991.0,0.09989361]
[1767754289640,0.010758,93001.0,92990.0,0.09097815]
[1767754290343,0.010758,93004.0,92990.0,0.09097815]
[1767754291355,0.010758,93004.0,92990.0,0.10173715]
[1767754291848,0.09148,93006.0,92992.0,0.010759]
[1767754292046,0.09148,93006.0,92991.0,0.02842288]
[1767754292249,0.09148,93006.0,92991.0,0.010759]
[1767754293051,0.09030949,93023.0,92998.0,0.01766388]
[1767754293347,0.09030949,93023.0,92990.0,0.09097815]
[1767754293348,0.010756,93021.0,93000.0,0.01766388]
[1767754293546,0.010756,93021.0,93001.0,0.11307708]
[1767754293742,0.010756,93021.0,93003.0,0.01766388]
[1767754294142,0.010756,93022.0,93003.0,0.01766388]
[1767754294342,0.02837484,93022.0,93003.0,0.01766388]
[1767754294544,0.010756,93020.0,93002.0,0.0954132]
[1767754295239,0.010756,93020.0,93003.0,0.01766388]
[1767754295443,0.010756,93020.0,93003.0,0.11307708]
[1767754295648,0.11868333,93024.0,93003.0,0.11307708]
[1767754296147,0.010755,93024.0,93010.0,0.09097815]
[1767754296351,0.10909884,93028.0,93010.0,0.09097815]
[1767754297448,0.01761884,93027.0,93010.0,0.09097815]
[1767754297756,0.01761884,93027.0,93007.0,0.02842088]
[1767754298063,0.01761884,93027.0,93010.0,0.09097815]
[1767754298249,0.010755,93026.0,93010.0,0.09097815]
[1767754298443,0.01761884,93024.0,93004.0,0.01766388]
[1767754298744,0.02837384,93023.0,93004.0,0.01766388]
[1767754299147,0.01761884,93023.0,93004.0,0.01766388]
[1767754299352,0.010755,93023.0,93010.0,0.09097815]
[1767754300557,0.010755,93023.0,93005.0,0.01766388]
[1767754300744,0.010755,93023.0,93010.0,0.09097815]
[1767754301146,0.010755,93023.0,93005.0,0.01766388]
[1767754303054,0.010756,93021.0,93005.0,0.01766388]
[1767754303458,0.010756,93021.0,93005.0,0.11307708]
[1767754304656,0.010756,93021.0,93006.0,0.01766388]
[1767754305656,0.010756,93021.0,93010.0,0.09097815]
[1767754305954,0.010756,93021.0,93006.0,0.01766388]
[1767754308464,0.010756,93021.0,93007.0,0.01766388]
[1767754309862,0.09030949,93025.0,93006.0,0.0954132]
[1767754309863,0.010756,93019.0,93006.0,0.0954132]
[1767754310255,0.010756,93019.0,93004.0,0.010758]
[1767754310460,0.010756,93019.0,93004.0,0.02842188]
[1767754310855,0.010756,93019.0,93004.0,0.12383508]
[1767754311162,0.01761884,93024.0,93004.0,0.0954132]
[1767754311163,0.010756,93015.0,93004.0,0.0954132]
[1767754311864,0.01761884,93013.0,92999.0,0.09148]
[1767754312057,0.010757,93012.0,92999.0,0.09148]
[1767754312264,0.010757,93009.0,92999.0,0.09148]
[1767754312564,0.09030949,93015.0,92999.0,0.09148]
[1767754312860,0.010756,93016.0,92999.0,0.09148]
[1767754313262,0.010757,93008.0,92999.0,0.09148]
[1767754313461,0.010757,93006.0,92999.0,0.09148]
[1767754314154,0.010756,93016.0,92999.0,0.09148]
[1767754314362,0.010757,93008.0,92999.0,0.10914388]
[1767754315263,0.010757,93007.0,92999.0,0.10914388]
[1767754316761,0.010757,93007.0,93000.0,0.01766388]
[1767754316960,0.010756,93017.0,93001.0,0.0954132]
[1767754318160,0.010757,93007.0,93001.0,0.0954132]
[1767754318861,0.010757,93007.0,92999.0,0.09148]
[1767754319162,0.010758,93005.0,92999.0,0.10659576]
[1767754319466,0.010758,93005.0,92999.0,0.09148]
[1767754319669,0.010758,93005.0,93001.0,0.10727886]
[1767754321367,0.010757,93008.0,93001.0,0.10727886]
[1767754321868,0.09148,93019.0,93006.0,0.01546859]
[1767754322170,0.010756,93018.0,93015.0,7.4e-07]
[1767754322361,0.010756,93016.0,93015.0,7.4e-07]
[1767754322562,0.010756,93016.0,93002.0,0.010758]
[1767754322867,0.010756,93016.0,93004.0,0.010758]
[1767754324163,0.010756,93016.0,93005.0,0.01546859]
[1767754324365,0.010756,93016.0,93006.0,0.01546859]
[1767754324766,0.09148,93030.0,93015.0,0.01546859]
[1767754324972,0.18245815,93030.0,93015.0,0.01546859]
[1767754326271,0.010755,93025.0,93015.0,0.01546859]
[1767754332872,0.010755,93024.0,93015.0,0.01546859]
[1767754333077,0.010756,93022.0,93015.0,0.01546859]
[1767754333868,0.010756,93022.0,93010.0,0.01546859]
[1767754334683,0.09148,93030.0,93017.0,0.01546859]
[1767754334875,0.010755,93027.0,93016.0,0.09458774]
[1767754335075,0.09148,93033.0,93016.0,0.09458774]
[1767754335771,0.01607653,93041.0,93016.0,0.09458774]
[1767754335972,0.010754,93033.0,93020.0,0.09458774]
[1767754336280,0.010755,93031.0,93020.0,0.09458774]
[1767754336580,0.1175739,93026.0,93012.0,0.010757]
[1767754336773,0.10149737,93026.0,93014.0,0.010756]
[1767754336978,0.010755,93026.0,93011.0,0.102237]
[1767754337167,0.010755,93026.0,93011.0,0.02622559]
[1767754337374,0.010755,93026.0,93012.0,0.01546859]
[1767754337573,0.010755,93026.0,93013.0,0.010757]
[1767754337977,0.010755,93029.0,93013.0,0.010757]
[1767754338176,0.010755,93027.0,93013.0,0.010757]
[1767754339186,0.1068189,93032.0,93012.0,0.01546859]
[1767754341288,0.010755,93025.0,93012.0,0.01546859]
[1767754341590,0.010755,93025.0,93011.0,0.102237]
[1767754341885,0.010755,93024.0,93011.0,0.102237]
[1767754342185,0.010755,93024.0,93011.0,0.11770559]
[1767754342686,0.010755,93027.0,93014.0,0.09458774]
[1767754342884,0.010755,93027.0,93015.0,0.01546859]
[1767754345890,0.010754,93033.0,93015.0,0.01546859]
[1767754346187,0.010755,93025.0,93015.0,0.01546859]
[1767754347090,0.010755,93025.0,93012.0,0.01546859]
[1767754347590,0.010755,93024.0,93012.0,0.01546859]
[1767754349990,0.010756,93023.0,93011.0,0.09148]
[1767754350199,0.1068189,93026.0,93011.0,0.09148]
[1767754350982,0.09074237,93026.0,93011.0,0.09148]
[1767754351191,0.010756,93021.0,93011.0,0.09148]
[1767754356592,0.010756,93019.0,93011.0,0.09148]
[1767754357997,0.010756,93022.0,93011.0,0.09148]
[1767754358186,0.010756,93019.0,93011.0,0.09148]
[1767754358388,0.010756,93019.0,93012.0,0.01676392]
[1767754360587,0.010756,93020.0,93012.0,0.01676392]
[1767754362296,0.010755,93029.0,93012.0,0.01676392]
[1767754362489,0.010755,93028.0,93012.0,0.01676392]
[1767754363494,0.010756,93018.0,93012.0,0.01676392]
[1767754363702,0.010756,93015.0,93011.0,0.09148]
[1767754363898,0.010755,93025.0,93011.0,0.09148]
[1767754364291,0.010756,93018.0,93016.0,9.2e-07]
[1767754364498,0.010756,93018.0,93011.0,0.09148]
[1767754365001,0.010756,93021.0,93011.0,0.09148]
[1767754365611,0.010755,93030.0,93011.0,0.09148]
[1767754365792,0.010756,93018.0,93011.0,0.09148]
[1767754366395,0.010756,93018.0,93011.0,0.10632027]
[1767754366605,0.010757,93014.0,93010.0,0.09144]
[1767754367305,0.010757,93011.0,93005.0,0.15064503]
[1767754367495,0.010757,93011.0,93000.0,0.09588705]
[1767754367695,0.010757,93009.0,93001.0,0.09144]
[1767754368701,0.010757,93009.0,93002.0,0.01229881]
[1767754369002,0.11091425,93008.0,92993.0,0.09144]
[1767754369190,0.11091425,93008.0,92971.0,0.016161]
[1767754369191,0.010759,92996.0,92989.0,0.09144]
[1767754369393,0.010759,92996.0,92988.0,0.15095426]
[1767754369600,0.010759,92996.0,92988.0,0.09144]
[1767754369801,0.010759,92996.0,92988.0,0.10820392]
[1767754370602,0.010759,92996.0,92988.0,0.09144]
[1767754370804,0.010758,92999.0,92988.0,0.09144]
[1767754370992,0.010758,92997.0,92988.0,0.09144]
[1767754371907,0.010758,92997.0,92988.0,0.10820392]
[1767754372998,0.010759,92995.0,92988.0,0.09144]
[1767754373194,0.11091425,92998.0,92976.0,0.07052092]
[1767754373397,0.01076,92988.0,92976.0,0.07623257]
[1767754373600,0.01076,92984.0,92976.0,0.07623257]
[1767754373800,0.01076,92984.0,92976.0,0.05946865]
[1767754374006,0.01076,92984.0,92975.0,0.09144]
[1767754374407,0.01076,92987.0,92976.0,0.01676392]
[1767754375016,0.01076,92985.0,92976.0,0.01676392]
[1767754375507,0.01076,92983.0,92976.0,0.01676392]
[1767754375702,0.01076,92981.0,92975.0,0.15198625]
[1767754375898,0.010758,92999.0,92975.0,0.15198625]
[1767754375899,0.09361681,93002.0,92980.0,0.01676392]
[1767754376209,0.09148,93006.0,92980.0,0.01676392]
[1767754376210,0.010759,92993.0,92980.0,0.01676392]
[1767754377997,0.010758,93005.0,92975.0,0.16274725]
[1767754377998,0.09361681,93013.0,92989.0,0.01676392]
[1767754378211,0.010757,93009.0,92990.0,0.01676392]
[1767754378513,0.09361681,93012.0,92989.0,0.06768401]
[1767754378514,0.09361681,93012.0,92993.0,0.01923839]
[1767754378906,0.010757,93011.0,92993.0,0.01923839]
[1767754379109,0.10667437,93011.0,92993.0,0.01923839]
[1767754379415,0.09591737,93010.0,92992.0,0.01897308]
[1767754380008,0.09591737,93026.0,93007.0,0.01870866]
[1767754380317,0.09148,93025.0,93011.0,0.01870866]
[1767754380617,0.117002,93031.0,93011.0,0.01870866]
[1767754380811,0.09591737,93029.0,93011.0,0.01870866]
[1767754381001,0.09591737,93025.0,93007.0,0.01823409]
[1767754381201,0.09591737,93025.0,93008.0,0.010757]
[1767754381906,0.09148,93024.0,93007.0,0.01823409]
[1767754382213,0.09513051,93023.0,93004.0,0.010758]
[1767754382604,0.11733712,93023.0,93004.0,0.02873012]
[1767754383912,0.11733712,93023.0,93007.0,0.010757]
[1767754385711,0.11733712,93023.0,93004.0,0.07835634]
[1767754386312,0.11733712,93023.0,93005.0,0.010758]
[1767754386907,0.11733712,93021.0,93005.0,0.010758]
[1767754388813,0.09513051,93010.0,92997.0,0.09148]
[1767754389114,0.09513051,93010.0,92997.0,0.15198826]
[1767754389409,0.09513051,93015.0,93000.0,0.09091593]
[1767754390202,0.09091593,93030.0,92997.0,0.16702226]
[1767754390203,0.010755,93026.0,93005.0,0.09091593]
[1767754390408,0.010755,93025.0,93010.0,0.09091593]
[1767754390608,0.09148,93024.0,93010.0,0.09091593]
[1767754390803,0.09148,93024.0,93006.0,0.01478268]
[1767754390804,0.03296061,93038.0,93019.0,0.02930723]
[1767754391007,0.09148,93031.0,93021.0,0.01855123]
[1767754391209,0.010754,93038.0,93022.0,0.010756]
[1767754391412,0.09148,93037.0,93022.0,0.010756]
[1767754391619,0.010754,93036.0,93020.0,0.09091593]
[1767754391812,0.11368661,93037.0,93020.0,0.09091593]
[1767754392217,0.20881712,93037.0,93020.0,0.09091593]
[1767754392812,0.20881712,93037.0,93020.0,0.10167193]
[1767754393212,0.01075,93067.0,93017.0,0.10961315]
[1767754393213,0.09513051,93043.0,93022.0,0.01818598]
[1767754393417,0.09148,93042.0,93030.0,0.09091593]
[1767754393617,0.010753,93041.0,93030.0,0.09091593]
[1767754393818,0.11368661,93042.0,93022.0,0.02894198]
[1767754394215,0.11733712,93037.0,93022.0,0.010756]
[1767754394418,0.02220661,93040.0,93022.0,0.010756]
[1767754394618,0.02220661,93040.0,93022.0,0.02868017]
[1767754394821,0.18661051,93042.0,93030.0,0.10167093]
[1767754395115,0.3187,93068.0,93030.0,0.10167093]
[1767754395116,0.09148,93044.0,93030.0,0.10167093]
[1767754395307,0.010753,93043.0,93030.0,0.09091593]
[1767754395626,0.010753,93040.0,93030.0,0.09091593]
[1767754396214,0.010753,93041.0,93030.0,0.09091593]
[1767754396509,0.010753,93041.0,93020.0,0.09106192]
[1767754396510,0.09148,93044.0,93024.0,0.02056592]
[1767754396715,0.09148,93044.0,93030.0,0.09091593]
[1767754396915,0.11733712,93042.0,93020.0,0.11162784]
[1767754397116,0.010754,93038.0,93030.0,0.09091593]
[1767754397313,0.010754,93038.0,93021.0,0.11162784]
[1767754398018,0.010754,93035.0,93021.0,0.09106192]
[1767754398225,0.02220661,93031.0,93019.0,0.09144]
[1767754398411,0.03296161,93031.0,93019.0,0.09144]
[1767754398616,0.010755,93027.0,93019.0,0.09144]
[1767754399619,0.010755,93025.0,93019.0,0.09144]
[1767754400312,0.02220661,93024.0,93005.0,0.02056592]
[1767754400516,0.010756,93017.0,93002.0,0.02056592]
[1767754400716,0.010756,93017.0,93003.0,0.09144]
[1767754401319,0.010756,93017.0,93003.0,0.11200592]
[1767754401524,0.010756,93016.0,93003.0,0.09144]
[1767754401825,0.09091593,93020.0,93003.0,0.09144]
[1767754401826,0.02220661,93018.0,93003.0,0.09144]
[1767754402026,0.010757,93011.0,93003.0,0.09144]
[1767754402427,0.010756,93017.0,93003.0,0.09144]
[1767754403027,0.010756,93015.0,93003.0,0.09144]
[1767754403621,0.10588651,93018.0,93003.0,0.09144]
[1767754403822,0.010756,93016.0,93003.0,0.09144]
[1767754404024,0.010757,93014.0,93003.0,0.09144]
[1767754404421,0.03296261,93017.0,93003.0,0.09144]
[1767754404626,0.010756,93017.0,93003.0,0.09144]
[1767754405436,0.010756,93020.0,93003.0,0.09144]
[1767754405826,0.02220661,93035.0,93013.0,0.02056592]
[1767754406025,0.02220661,93033.0,93014.0,0.010756]
[1767754406230,0.02220661,93032.0,93014.0,0.010756]
[1767754406528,0.010755,93026.0,93011.0,0.010757]
[1767754407121,0.11733712,93034.0,93014.0,0.02056592]
[1767754407330,0.010755,93031.0,93014.0,0.02056592]
[1767754407727,0.010755,93031.0,93015.0,0.010756]
[1767754408525,0.010755,93028.0,93012.0,0.010757]
[1767754408734,0.010755,93026.0,93011.0,0.010757]
[1767754408930,0.010755,93024.0,93010.0,0.10167293]
[1767754409132,0.09513051,93030.0,93012.0,0.010757]
[1767754409324,0.11364661,93034.0,93012.0,0.03132292]
[1767754409927,0.02220661,93033.0,93012.0,0.03132292]
[1767754410441,0.02220661,93033.0,93013.0,0.02056592]
[1767754411041,0.010755,93027.0,93013.0,0.02056592]
[1767754411630,0.010755,93028.0,93013.0,0.03132292]
[1767754413040,0.010755,93028.0,93015.0,0.010756]
[1767754414942,0.010755,93028.0,93013.0,0.02056592]
[1767754415637,0.010755,93028.0,93014.0,0.03355339]
[1767754416135,0.010754,93032.0,93016.0,0.010756]
[1767754416335,0.010754,93032.0,93014.0,0.02279739]
[1767754416731,0.010754,93032.0,93019.0,0.010756]
[1767754417332,0.010755,93031.0,93016.0,0.010756]
[1767754417733,0.010755,93029.0,93016.0,0.010756]
[1767754420433,0.010755,93027.0,93014.0,0.02279739]
[1767754420640,0.010755,93031.0,93016.0,0.03355339]
[1767754421635,0.010755,93031.0,93016.0,0.010756]
[1767754422035,0.010755,93029.0,93016.0,0.010756]
[1767754423148,0.010755,93029.0,93016.0,0.03355339]
[1767754423335,0.010755,93029.0,93016.0,0.010756]
[1767754423738,0.010755,93032.0,93018.0,0.010756]
[1767754423951,0.010754,93033.0,93022.0,0.02279739]
[1767754424245,0.010754,93033.0,93023.0,0.02279739]
[1767754424645,0.010754,93033.0,93022.0,0.0980241]
[1767754425037,0.09144,93034.0,93022.0,0.02279739]
[1767754425238,0.09144,93039.0,93023.0,0.02279739]
[1767754425638,0.09144,93039.0,93024.0,0.02279739]
[1767754426234,0.09144,93039.0,93026.0,0.010755]
[1767754426435,0.010754,93038.0,93024.0,0.02279739]
[1767754426639,0.010753,93042.0,93025.0,0.010755]
[1767754426839,0.09144,93041.0,93025.0,0.03355239]
[1767754427346,0.09144,93041.0,93027.0,0.010755]
[1767754427650,0.010753,93045.0,93028.0,0.02279739]
[1767754427847,0.03265183,93057.0,93036.0,0.02279739]
[1767754428045,0.00214919,93059.0,93040.0,0.09091593]
[1767754428348,0.00214919,93059.0,93044.0,0.010753]
[1767754428553,0.09232012,93065.0,93044.0,0.010753]
[1767754428850,0.10166693,93060.0,93044.0,0.010753]
[1767754429052,0.03251085,93060.0,93044.0,0.010753]
[1767754430654,0.02175985,93059.0,93041.0,0.010753]
[1767754430950,0.02175985,93057.0,93041.0,0.010753]
[1767754431150,0.03251185,93056.0,93038.0,0.2002181]
[1767754432348,0.03251185,93056.0,93040.0,0.09091593]
[1767754432936,0.03251185,93056.0,93038.0,0.2002181]
[1767754433148,0.010752,93054.0,93040.0,0.09091593]
[1767754433342,0.010752,93052.0,93038.0,0.09144]
[1767754433549,0.02175985,93051.0,93038.0,0.09144]
[1767754433852,0.02175985,93044.0,93025.0,0.00907458]
[1767754434045,0.02175985,93044.0,93030.0,0.09091593]
[1767754434849,0.010753,93045.0,93030.0,0.09091593]
[1767754435353,0.11407997,93047.0,93030.0,0.10167093]
[1767754436149,0.010753,93046.0,93030.0,0.10167093]
[1767754440354,0.010753,93046.0,93032.0,0.010754]
[1767754440848,0.022641,93048.0,93030.0,0.09091593]
[1767754441048,0.022641,93046.0,93030.0,0.09091593]
[1767754441443,0.022641,93046.0,93029.0,0.00214988]
[1767754441849,0.010754,93039.0,93029.0,0.00214988]
[1767754442751,0.02411147,93038.0,93019.0,0.10789854]
[1767754442958,0.02411147,93035.0,93019.0,0.05954762]
[1767754443156,0.010754,93034.0,93020.0,0.10167193]
[1767754443349,0.03486547,93035.0,93020.0,0.10167193]
[1767754443544,0.010755,93031.0,93017.0,0.102196]
[1767754443756,0.03486547,93032.0,93017.0,0.09144]
[1767754444350,0.010755,93030.0,93017.0,0.09144]
[1767754445657,0.02411147,93032.0,93017.0,0.09144]
[1767754445856,0.03486647,93028.0,93012.0,0.010757]
[1767754446059,0.03486647,93028.0,93010.0,0.09144]
[1767754446254,0.010755,93028.0,93010.0,0.19146505]
[1767754446758,0.010755,93028.0,93010.0,0.10054912]
[1767754446953,0.03486647,93028.0,93010.0,0.10054912]
[1767754447158,0.03486647,93028.0,93013.0,0.010757]
[1767754448351,0.03486647,93028.0,93015.0,0.010756]
[1767754448352,0.02411147,93028.0,93015.0,0.010756]
[1767754449256,0.09719047,93029.0,93017.0,0.010756]
[1767754449847,0.09719047,93029.0,93014.0,0.010756]
[1767754450551,0.010755,93026.0,93011.0,0.010757]
[1767754450755,0.010755,93027.0,93013.0,0.010757]
[1767754451561,0.010755,93025.0,93010.0,0.102197]
[1767754452064,0.010755,93025.0,93012.0,0.010757]
[1767754452668,0.010755,93026.0,93013.0,0.010756]
[1767754453357,0.010755,93024.0,93010.0,0.102197]
[1767754453763,0.010755,93027.0,93012.0,0.010757]
[1767754453964,0.010755,93027.0,93010.0,0.09144]
[1767754454163,0.02411147,93028.0,93010.0,0.102197]
[1767754454164,0.010755,93023.0,93010.0,0.102197]
[1767754454661,0.12130194,93034.0,93015.0,0.10863919]
[1767754454969,0.010755,93026.0,93012.0,0.010757]
[1767754457867,0.010755,93024.0,93010.0,0.09144]
[1767754458862,0.010755,93024.0,93011.0,0.010757]
[1767754459262,0.010755,93027.0,93013.0,0.010757]
[1767754459762,0.02411147,93028.0,93015.0,0.010756]
[1767754460667,0.03486647,93028.0,93015.0,0.010756]
[1767754462674,0.010755,93026.0,93013.0,0.010757]
[1767754465976,0.010755,93026.0,93014.0,0.010756]
[1767754466285,0.03486647,93028.0,93014.0,0.010756]
[1767754466467,0.02411147,93028.0,93016.0,0.010756]
[1767754466782,0.09719047,93029.0,93016.0,0.010756]
[1767754469972,0.010755,93028.0,93016.0,0.010756]
[1767754470172,0.09719047,93029.0,93016.0,0.010756]
[1767754470473,0.12130194,93029.0,93016.0,0.010756]
[1767754470694,0.02411147,93028.0,93016.0,0.010756]
[1767754474177,0.02130722,93022.0,93012.0,0.010757]
[1767754474478,0.010756,93022.0,93010.0,0.102197]
[1767754474680,0.03206322,93022.0,93010.0,0.102197]
[1767754475474,0.03206322,93022.0,93000.0,0.010758]
[1767754475475,0.010756,93019.0,92999.0,0.09144]
[1767754475674,0.02130722,93017.0,93007.0,0.010757]
[1767754477685,0.010756,93021.0,93008.0,0.010757]
[1767754477882,0.02130722,93021.0,93001.0,0.09199152]
[1767754478070,0.02130722,93021.0,93001.0,0.09241284]
[1767754478268,0.02130722,93021.0,93010.0,0.010757]
[1767754478474,0.02130722,93021.0,93001.0,0.09241284]
[1767754478674,0.02130722,93021.0,93009.0,0.010757]
[1767754479784,0.02130722,93021.0,92999.0,0.16192999]
[1767754479785,0.02130722,93018.0,93006.0,0.010757]
[1767754479981,0.09882344,93019.0,93006.0,0.010757]
[1767754480380,0.09882344,93019.0,93008.0,0.010757]
[1767754480582,0.09144,93023.0,93010.0,0.010757]
[1767754480782,0.02130722,93022.0,93010.0,0.010757]
[1767754481279,0.03206322,93019.0,93000.0,0.09199152]
[1767754481785,0.03206322,93019.0,93003.0,0.010758]
[1767754482084,0.010756,93017.0,93003.0,0.010758]
[1767754485172,0.010756,93017.0,93005.0,0.010758]
[1767754486786,0.02130722,93019.0,93005.0,0.010758]
[1767754486787,0.03206322,93019.0,93005.0,0.010758]
[1767754488381,0.02130722,93019.0,93003.0,0.010758]
[1767754488991,0.010756,93017.0,93004.0,0.010758]
[1767754491286,0.010756,93017.0,93000.0,0.09199152]
[1767754492194,0.010756,93017.0,93005.0,0.010757]
[1767754492891,0.03206322,93020.0,93006.0,0.010757]
[1767754493092,0.02130722,93020.0,93010.0,0.010757]
[1767754493281,0.02130722,93020.0,93008.0,0.010757]
[1767754493483,0.09144,93023.0,93002.0,0.09199152]
[1767754493689,0.09144,93023.0,93017.0,0.010756]
[1767754494282,0.010752,93055.0,93005.0,0.010758]
[1767754494283,0.09144,93029.0,93009.0,0.09199152]
[1767754494491,0.09144,93031.0,93018.0,0.010756]
[1767754494883,0.09144,93031.0,93020.0,0.010756]
[1767754496897,0.09144,93031.0,93017.0,0.010756]
[1767754497496,0.102195,93031.0,93017.0,0.010756]
[1767754498396,0.09144,93031.0,93018.0,0.010756]
[1767754498899,0.10964579,93031.0,93018.0,0.010756]
[1767754499091,0.09144,93031.0,93022.0,0.010756]
[1767754499895,0.01820579,93030.0,93018.0,0.010756]
[1767754500092,0.010755,93029.0,93016.0,0.010756]
[1767754500293,0.02896079,93029.0,93016.0,0.010756]
[1767754501111,0.010755,93027.0,93011.0,0.09199152]
[1767754501790,0.01820579,93029.0,93011.0,0.09199152]
[1767754502298,0.09144,93031.0,93018.0,0.010756]
[1767754502489,0.01831556,93030.0,93018.0,0.010756]
[1767754503197,0.010754,93032.0,93018.0,0.010756]
[1767754503394,0.09238216,93041.0,93026.0,0.010755]
[1767754503701,0.01831556,93045.0,93032.0,0.010754]
[1767754503897,0.01831556,93045.0,93034.0,0.010754]
[1767754504401,0.01831556,93045.0,93036.0,0.010754]
[1767754504601,0.01831556,93045.0,93033.0,0.010754]
[1767754505104,0.01831556,93044.0,93033.0,0.010754]
[1767754505998,0.01831556,93044.0,93030.0,0.010755]
[1767754506202,0.09144,93046.0,93027.0,0.010755]
[1767754506203,0.010753,93041.0,93027.0,0.010755]
[1767754506503,0.02906856,93041.0,93027.0,0.010755]
[1767754506801,0.02906856,93041.0,93024.0,0.010755]
[1767754507390,0.010754,93039.0,93024.0,0.010755]
[1767754507787,0.010754,93039.0,93020.0,0.09144]
[1767754508217,0.010754,93039.0,93025.0,0.010755]